bitfinex/quotes_SOLUSD_20230702
["timestamp","ask_amount","ask_price","bid_price","bid_amount"]
[1688260426900,22.5,18.8,18.79,55.0]
[1688260427101,22.5,18.8,18.789,55.0]
[1688260427492,22.5,18.8,18.786,104.35733994]
[1688260428196,22.5,18.8,18.786,49.35733994]
[1688260428796,22.5,18.8,18.787,55.0]
[1688260428989,22.5,18.8,18.787,77.515]
[1688260430003,22.5,18.8,18.787,88.35219922]
[1688260433099,22.5,18.8,18.787,55.0]
[1688260433307,22.5,18.8,18.786,55.0]
[1688260433614,95.1001,18.799,18.786,55.0]
[1688260433907,80.445,18.796,18.785,55.0]
[1688260434408,80.445,18.796,18.785,65.83719922]
[1688260434905,80.445,18.796,18.782,55.0]
[1688260435205,80.445,18.796,18.782,22.521]
[1688260435405,80.445,18.796,18.782,33.35819922]
[1688260435898,80.445,18.796,18.781,22.521]
[1688260436122,80.445,18.796,18.782,20.0]
[1688260436683,80.445,18.796,18.779,22.523]
[1688260436888,95.1001,18.799,18.779,22.523]
[1688260436889,186.212,18.791,18.779,22.523]
[1688260437090,186.212,18.791,18.777,22.527]
[1688260437298,22.516,18.787,18.777,22.527]
[1688260437801,22.516,18.787,18.776,10.83719922]
[1688260438105,22.516,18.787,18.777,22.527]
[1688260438906,22.516,18.787,18.778,55.0]
[1688260439802,22.516,18.787,18.778,77.526]
[1688260440198,22.516,18.787,18.778,55.0]
[1688260440507,22.516,18.787,18.777,77.526]
[1688260441008,22.516,18.787,18.777,88.36319922]
[1688260443619,22.516,18.787,18.778,10.83719922]
[1688260443795,22.516,18.787,18.781,22.522]
[1688260443997,22.516,18.787,18.782,55.0]
[1688260447014,22.516,18.787,18.781,55.0]
[1688260448712,22.516,18.787,18.775,22.527]
[1688260448900,22.516,18.787,18.773,37.3542415]
[1688260449098,22.516,18.787,18.773,10.83719922]
[1688260449902,22.516,18.787,18.774,22.53]
[1688260450315,22.516,18.787,18.774,33.36719922]
[1688260450509,22.516,18.787,18.775,55.0]
[1688260450716,22.516,18.787,18.775,77.529]
[1688260451918,22.516,18.787,18.775,22.529]
[1688260452418,22.516,18.787,18.773,22.531]
[1688260452805,22.516,18.787,18.773,10.83719922]
[1688260453514,22.516,18.787,18.774,77.53]
[1688260453815,22.516,18.787,18.772,22.532]
[1688260454208,22.516,18.787,18.772,33.36919922]
[1688260454516,22.516,18.787,18.772,22.532]
[1688260455515,22.516,18.787,18.772,33.36919922]
[1688260456025,22.516,18.787,18.773,55.0]
[1688260458313,22.516,18.787,18.773,88.36819922]
[1688260458517,22.516,18.787,18.773,77.531]
[1688260458806,22.516,18.787,18.774,10.83719922]
[1688260459123,22.516,18.787,18.775,77.529]
[1688260469233,22.516,18.787,18.775,55.0]
[1688260469714,22.516,18.787,18.775,77.529]
[1688260471823,22.516,18.787,18.775,55.0]
[1688260472029,22.516,18.787,18.776,55.0]
[1688260472329,22.516,18.787,18.774,77.53]
[1688260474134,22.516,18.787,18.774,88.36719922]
[1688260477642,22.516,18.787,18.774,77.53]
[1688260478221,22.516,18.787,18.772,22.532]
[1688260478542,55.0,18.786,18.767,22.539]
[1688260478730,33.78,18.78,18.763,10.83719922]
[1688260479043,80.532,18.775,18.763,64.24939922]
[1688260479339,80.532,18.775,18.763,55.9122]
[1688260480032,80.532,18.775,18.763,22.543]
[1688260481645,80.532,18.775,18.764,55.0]
[1688260481844,80.532,18.775,18.764,77.542]
[1688260482643,80.532,18.775,18.764,22.542]
[1688260483942,80.532,18.775,18.765,55.0]
[1688260484246,80.532,18.775,18.762,22.544]
[1688260485533,80.532,18.775,18.763,55.0]
[1688260488142,80.532,18.775,18.763,77.544]
[1688260489351,22.53,18.775,18.763,77.544]
[1688260495049,22.53,18.775,18.763,88.38119922]
[1688260495235,26.23615096,18.786,18.763,88.38119922]
[1688260495236,163.732,18.787,18.763,190.55872953]
[1688260495437,22.522,18.782,18.77,33.78]
[1688260495737,22.521,18.783,18.775,22.529]
[1688260496156,22.521,18.783,18.776,55.0]
[1688260496345,22.521,18.783,18.778,22.526]
[1688260496643,22.521,18.783,18.779,55.0]
[1688260497952,22.521,18.783,18.778,55.0]
[1688260500749,22.521,18.783,18.777,77.527]
[1688260502451,22.521,18.783,18.777,55.0]
[1688260503463,27.20283556,18.795,18.777,55.0]
[1688260503464,34.03,18.8,18.777,77.527]
[1688260503635,34.03,18.8,18.78,33.78]
[1688260503636,57.938,18.796,18.78,33.78]
[1688260503843,22.509,18.793,18.784,22.518]
[1688260504043,22.509,18.793,18.785,55.0]
[1688260504245,22.509,18.793,18.787,22.515]
[1688260504445,22.509,18.793,18.788,55.0]
[1688260504746,22.509,18.793,18.788,77.513]
[1688260505041,22.509,18.793,18.788,55.0]
[1688260505357,22.509,18.793,18.787,55.0]
[1688260506243,22.509,18.793,18.786,55.0]
[1688260506447,22.509,18.793,18.787,22.515]
[1688260506757,59.06414534,18.804,18.793,22.508]
[1688260506953,22.499,18.801,18.791,22.509]
[1688260507160,22.499,18.801,18.794,55.0]
[1688260507536,22.499,18.801,18.793,55.0]
[1688260509257,22.499,18.801,18.793,77.508]
[1688260513148,22.499,18.801,18.793,55.0]
[1688260513350,22.499,18.801,18.792,55.0]
[1688260513554,22.499,18.801,18.792,77.508]
[1688260513845,22.497,18.803,18.792,88.34519922]
[1688260514456,22.497,18.803,18.796,22.504]
[1688260514761,22.495,18.805,18.799,22.5]
[1688260515065,22.495,18.805,18.8,55.0]
[1688260515366,22.495,18.805,18.801,22.498]
[1688260515547,22.495,18.805,18.802,55.0]
[1688260516980,22.495,18.805,18.798,22.502]
[1688260517263,22.495,18.805,18.795,22.504]
[1688260518062,22.495,18.805,18.795,45.008]
[1688260518570,22.495,18.805,18.796,55.0]
[1688260518768,22.495,18.805,18.798,22.502]
[1688260518968,22.495,18.805,18.799,55.0]
[1688260519169,26.73932999,18.818,18.799,55.0]
[1688260519170,33.53,18.82,18.799,77.5]
[1688260519469,33.53,18.82,18.804,22.494]
[1688260519470,22.483,18.814,18.804,22.494]
[1688260519650,22.483,18.814,18.805,77.492]
[1688260521169,22.483,18.814,18.805,22.492]
[1688260521370,22.483,18.814,18.806,55.0]
[1688260521664,22.483,18.814,18.808,22.489]
[1688260521874,91.0732,18.817,18.809,55.0]
[1688260522058,57.858,18.822,18.811,22.486]
[1688260522371,57.858,18.822,18.812,55.0]
[1688260522372,155.9142,18.822,18.812,55.0]
[1688260522766,22.481,18.816,18.812,55.0]
[1688260523372,22.481,18.816,18.811,55.0]
[1688260524661,22.481,18.816,18.811,77.486]
[1688260525955,105.567,18.823,18.811,77.486]
[1688260525956,57.844,18.827,18.811,135.377]
[1688260526157,22.473,18.823,18.816,22.48]
[1688260526357,22.471,18.825,18.818,22.477]
[1688260526553,22.471,18.825,18.813,57.883]
[1688260526554,22.471,18.825,18.821,22.474]
[1688260527067,22.471,18.825,18.822,55.0]
[1688260527269,27.64470859,18.853,18.822,55.0]
[1688260527270,57.818,18.835,18.822,77.473]
[1688260527569,57.818,18.835,18.822,88.31019922]
[1688260527875,22.463,18.831,18.822,88.31019922]
[1688260529072,22.463,18.831,18.822,77.473]
[1688260534472,22.463,18.831,18.822,22.473]
[1688260534859,22.463,18.831,18.815,57.878]
[1688260535064,22.463,18.831,18.82,22.475]
[1688260535875,22.463,18.831,18.821,55.0]
[1688260537882,22.463,18.831,18.822,22.473]
[1688260538081,22.463,18.831,18.823,55.0]
[1688260541766,22.463,18.831,18.823,77.472]
[1688260542180,57.829,18.832,18.823,77.472]
[1688260542361,22.463,18.831,18.823,77.472]
[1688260543369,19.963,18.831,18.823,55.0]
[1688260543567,19.963,18.831,18.822,55.0]
[1688260544169,19.963,18.831,18.822,77.473]
[1688260545987,19.963,18.831,18.82,22.474]
[1688260546993,19.963,18.831,18.82,33.31119922]
[1688260547393,19.963,18.831,18.821,55.0]
[1688260547874,19.963,18.831,18.82,55.0]
[1688260548773,19.963,18.831,18.819,77.476]
[1688260549176,19.963,18.831,18.819,88.31319922]
[1688260549593,19.963,18.831,18.819,77.476]
[1688260549980,19.963,18.831,18.821,22.474]
[1688260550181,19.963,18.831,18.822,77.473]
[1688260551689,19.963,18.831,18.822,55.0]
[1688260551879,19.963,18.831,18.821,55.0]
[1688260556087,19.963,18.831,18.821,77.474]
[1688260560796,19.963,18.831,18.821,88.31119922]
[1688260562491,19.963,18.831,18.821,65.83719922]
[1688260563205,19.963,18.831,18.821,88.31119922]
[1688260564500,19.963,18.831,18.821,65.83719922]
[1688260565003,19.963,18.831,18.821,88.31119922]
[1688260568604,19.963,18.831,18.821,65.83719922]
[1688260568805,19.963,18.831,18.814,84.8128783]
[1688260569013,19.963,18.831,18.815,0.99993834]
[1688260569210,19.963,18.831,18.815,23.48093834]
[1688260569407,19.963,18.831,18.815,0.99993834]
[1688260569408,87.31,18.83,18.815,0.99993834]
[1688260569595,185.864,18.826,18.808,1.49993834]
[1688260569791,33.78,18.82,18.796,1.49993834]
[1688260569996,185.989,18.813,18.796,1.49993834]
[1688260570396,80.37,18.813,18.8,22.499]
[1688260570596,22.484,18.813,18.8,113.914]
[1688260571307,22.484,18.813,18.801,21.49993834]
[1688260571606,22.484,18.813,18.804,22.494]
[1688260572014,22.484,18.813,18.807,22.491]
[1688260572201,22.484,18.813,18.805,55.0]
[1688260572202,22.484,18.813,18.808,77.489]
[1688260572403,22.484,18.813,18.808,22.489]
[1688260572601,22.484,18.813,18.809,55.0]
[1688260573895,22.484,18.813,18.809,77.488]
[1688260574402,22.483,18.814,18.809,77.488]
[1688260574795,33.53,18.83,18.809,77.488]
[1688260575010,22.471,18.824,18.81,55.27993834]
[1688260575323,22.471,18.824,18.816,22.48]
[1688260575494,22.471,18.824,18.817,55.0]
[1688260575693,22.471,18.824,18.819,22.477]
[1688260575911,94.951,18.829,18.82,55.0]
[1688260575912,22.469,18.826,18.82,55.0]
[1688260576114,169.06,18.84,18.82,55.0]
[1688260576115,26.54035091,18.839,18.822,22.472]
[1688260576422,22.457,18.836,18.823,55.0]
[1688260576714,22.457,18.836,18.826,22.467]
[1688260576903,22.457,18.836,18.829,22.465]
[1688260577103,22.457,18.836,18.828,22.465]
[1688260577406,22.457,18.836,18.829,55.0]
[1688260577914,22.457,18.836,18.829,77.464]
[1688260581616,94.951,18.839,18.829,77.464]
[1688260581913,22.455,18.838,18.829,77.464]
[1688260583718,105.436,18.846,18.83,53.5]
[1688260583719,94.2967,18.844,18.83,53.5]
[1688260584014,22.449,18.843,18.834,22.459]
[1688260584215,22.449,18.843,18.832,57.825]
[1688260584216,22.449,18.843,18.837,22.455]
[1688260584720,22.449,18.843,18.838,77.454]
[1688260585801,22.449,18.843,18.838,22.454]
[1688260586000,22.449,18.843,18.839,55.0]
[1688260587817,22.449,18.843,18.839,77.453]
[1688260588519,22.449,18.843,18.839,55.0]
[1688260588721,22.449,18.843,18.838,55.0]
[1688260589414,22.449,18.843,18.837,55.0]
[1688260589719,22.449,18.843,18.837,77.455]
[1688260590713,94.2967,18.849,18.837,77.455]
[1688260591811,22.445,18.847,18.837,77.455]
[1688260592017,22.445,18.847,18.832,68.62019922]
[1688260592018,80.226,18.847,18.832,57.783]
[1688260592425,80.226,18.847,18.836,22.456]
[1688260593715,22.445,18.847,18.839,22.452]
[1688260593923,22.445,18.847,18.84,77.451]
[1688260594126,22.445,18.847,18.84,22.451]
[1688260594315,22.445,18.847,18.841,55.0]
[1688260597912,22.445,18.847,18.841,77.45]
[1688260598222,22.445,18.847,18.841,55.0]
[1688260598524,22.445,18.847,18.84,55.0]
[1688260598706,22.445,18.847,18.84,77.452]
[1688260603404,22.442,18.849,18.84,77.452]
[1688260603613,153.9439,18.856,18.841,20.0]
[1688260603910,153.9439,18.856,18.845,22.445]
[1688260603911,22.435,18.855,18.845,22.445]
[1688260604307,22.435,18.855,18.848,22.441]
[1688260604507,22.435,18.855,18.849,55.0]
[1688260604723,57.732,18.863,18.849,55.0]
[1688260604920,22.43,18.859,18.852,22.436]
[1688260605126,22.43,18.859,18.853,55.0]
[1688260605814,22.428,18.861,18.853,77.436]
[1688260606136,57.723,18.866,18.853,77.436]
[1688260606137,22.428,18.86,18.853,77.436]
[1688260607324,22.428,18.86,18.853,55.0]
[1688260607926,22.428,18.86,18.852,22.437]
[1688260608124,22.428,18.86,18.854,55.0]
[1688260608429,22.428,18.86,18.853,55.0]
[1688260608629,22.428,18.86,18.843,22.447]
[1688260608928,56.028,18.86,18.843,22.447]
[1688260609422,56.028,18.86,18.843,49.05873]
[1688260609610,80.194,18.855,18.843,49.05873]
[1688260610226,80.194,18.855,18.843,22.447]
[1688260610426,80.194,18.855,18.844,55.0]
[1688260610926,80.194,18.855,18.844,77.446]
[1688260611130,80.194,18.855,18.84,22.451]
[1688260611329,20.0,18.854,18.838,22.453]
[1688260611534,80.215,18.85,18.838,22.453]
[1688260611828,96.7794,18.849,18.838,22.453]
[1688260612044,22.445,18.846,18.836,22.455]
[1688260612542,22.445,18.846,18.835,27.177726]
[1688260612731,22.445,18.846,18.833,22.46]
[1688260614822,22.445,18.846,18.834,55.0]
[1688260615122,22.445,18.846,18.834,77.459]
[1688260615741,22.445,18.846,18.834,55.0]
[1688260615913,22.445,18.846,18.833,55.0]
[1688260616437,22.445,18.846,18.832,55.0]
[1688260616625,22.445,18.846,18.832,77.461]
[1688260618024,22.445,18.846,18.832,22.461]
[1688260618340,33.6,18.84,18.824,49.20035307]
[1688260618638,33.6,18.84,18.824,22.47]
[1688260618639,80.273,18.836,18.824,22.47]
[1688260618820,105.479,18.838,18.824,22.47]
[1688260618821,22.462,18.832,18.824,22.47]
[1688260619019,22.462,18.832,18.82,57.871]
[1688260619228,22.462,18.832,18.817,57.871]
[1688260619430,22.462,18.832,18.818,20.0]
[1688260620437,22.462,18.832,18.822,22.473]
[1688260620632,22.462,18.832,18.823,55.0]
[1688260620941,22.462,18.832,18.824,22.47]
[1688260621235,22.462,18.832,18.825,55.0]
[1688260621619,22.462,18.832,18.825,77.469]
[1688260626641,22.462,18.832,18.822,22.473]
[1688260626831,80.289,18.832,18.818,20.0]
[1688260627220,80.289,18.832,18.818,22.477]
[1688260627545,80.289,18.832,18.813,26.05219187]
[1688260627546,33.6,18.83,18.813,26.05219187]
[1688260627851,185.869,18.825,18.808,22.489]
[1688260628041,185.869,18.825,18.796,105.711]
[1688260628242,20.0,18.824,18.8,57.922]
[1688260628443,22.479,18.817,18.805,22.493]
[1688260630953,22.479,18.817,18.796,57.935]
[1688260631152,22.479,18.817,18.796,85.00943562]
[1688260631338,22.479,18.817,18.801,22.497]
[1688260632139,22.479,18.817,18.806,22.492]
[1688260632345,22.479,18.817,18.807,77.491]
[1688260632545,22.479,18.817,18.808,55.0]
[1688260634142,22.479,18.817,18.808,77.489]
[1688260634564,22.479,18.817,18.808,55.0]
[1688260636552,22.479,18.817,18.808,77.49]
[1688260636940,22.479,18.817,18.808,55.0]
[1688260640341,22.476,18.82,18.81,33.6]
[1688260640656,22.472,18.824,18.812,23.48393834]
[1688260640957,22.472,18.824,18.816,22.48]
[1688260641262,22.472,18.824,18.818,22.477]
[1688260641555,22.472,18.824,18.819,55.0]
[1688260641937,163.344,18.832,18.819,55.0]
[1688260642142,22.466,18.828,18.819,22.476]
[1688260642362,22.466,18.828,18.82,55.0]
[1688260642580,22.466,18.828,18.82,22.475]
[1688260642861,22.466,18.828,18.821,55.0]
[1688260649171,22.466,18.828,18.82,55.0]
[1688260651375,22.466,18.828,18.82,77.475]
[1688260652570,22.466,18.828,18.82,55.0]
[1688260657774,80.305,18.828,18.814,55.0]
[1688260657980,80.305,18.828,18.813,26.06028122]
[1688260658479,80.305,18.828,18.811,10.83719922]
[1688260658676,80.305,18.828,18.812,20.0]
[1688260658877,80.305,18.828,18.813,48.543281]
[1688260659564,80.305,18.828,18.814,77.482]
[1688260661579,80.305,18.828,18.814,88.31919922]
[1688260661769,80.305,18.828,18.815,10.83719922]
[1688260661972,80.305,18.828,18.818,22.477]
[1688260662175,80.305,18.828,18.819,55.0]
[1688260663079,80.305,18.828,18.818,55.0]
[1688260663777,80.305,18.828,18.818,77.477]
[1688260664085,80.305,18.828,18.818,55.0]
[1688260664269,80.305,18.828,18.817,77.479]
[1688260664783,80.305,18.828,18.817,55.0]
[1688260664971,80.305,18.828,18.816,55.0]
[1688260665875,80.305,18.828,18.816,77.48]
[1688260666776,22.466,18.828,18.816,88.31719922]
[1688260667090,22.466,18.828,18.82,33.56]
[1688260667269,22.466,18.828,18.822,22.473]
[1688260667476,22.466,18.828,18.823,55.0]
[1688260667682,22.466,18.828,18.823,77.472]
[1688260668887,57.82,18.835,18.823,77.472]
[1688260669591,22.462,18.832,18.823,77.472]
[1688260671088,105.457,18.842,18.823,77.472]
[1688260671294,57.799,18.841,18.823,88.30919922]
[1688260671482,57.799,18.841,18.823,77.472]
[1688260672170,22.456,18.837,18.823,77.472]
[1688260675996,22.456,18.837,18.823,22.472]
[1688260677486,22.456,18.837,18.824,55.0]
[1688260677695,22.456,18.837,18.826,22.468]
[1688260677896,22.456,18.837,18.827,55.0]
[1688260682399,22.456,18.837,18.822,22.473]
[1688260683999,22.456,18.837,18.823,55.0]
[1688260684797,22.456,18.837,18.823,77.472]
[1688260685895,20.0,18.836,18.814,57.881]
[1688260686101,80.299,18.83,18.817,22.478]
[1688260686992,95.1747,18.829,18.817,22.478]
[1688260687180,22.469,18.826,18.818,55.0]
[1688260688298,22.469,18.826,18.818,77.478]
[1688260688902,22.469,18.826,18.818,55.0]
[1688260691211,22.469,18.826,18.803,105.671]
[1688260691392,22.469,18.826,18.8,168.29]
[1688260691393,20.0,18.825,18.807,22.49]
[1688260691590,185.922,18.82,18.807,22.49]
[1688260691904,185.922,18.82,18.806,10.83719922]
[1688260692206,185.922,18.82,18.806,33.32919922]
[1688260692415,98.9175,18.819,18.806,33.32919922]
[1688260692591,22.481,18.816,18.806,33.32919922]
[1688260693504,22.481,18.816,18.807,55.0]
[1688260694104,22.481,18.816,18.807,88.32819922]
[1688260694408,22.481,18.816,18.808,10.83719922]
[1688260694611,22.481,18.816,18.81,22.487]
[1688260695005,22.481,18.816,18.811,55.0]
[1688260696004,22.481,18.816,18.81,55.0]
[1688260698307,22.481,18.816,18.806,22.492]
[1688260699709,22.481,18.816,18.807,55.0]
[1688260704718,22.481,18.816,18.8,59.91964551]
[1688260704918,22.481,18.816,18.801,20.0]
[1688260705416,22.481,18.816,18.801,33.33519922]
[1688260705918,22.481,18.816,18.806,22.492]
[1688260706215,22.481,18.816,18.807,55.0]
[1688260707813,22.481,18.816,18.802,10.83719922]
[1688260708003,22.481,18.816,18.797,84.39112327]
[1688260708198,22.481,18.816,18.799,10.83719922]
[1688260708406,33.62,18.82,18.801,22.498]
[1688260708407,80.38,18.811,18.801,22.498]
[1688260708800,80.38,18.811,18.802,20.0]
[1688260709121,22.487,18.811,18.802,42.497]
[1688260709321,22.487,18.811,18.803,10.83719922]
[1688260709615,57.871,18.818,18.805,22.493]
[1688260710000,22.485,18.812,18.807,22.491]
[1688260710201,22.485,18.812,18.808,55.0]
[1688260710810,22.485,18.812,18.808,77.49]
[1688260711805,22.485,18.812,18.808,55.0]
[1688260712019,22.485,18.812,18.807,77.491]
[1688260715721,22.485,18.812,18.803,10.83719922]
[1688260715931,22.485,18.812,18.803,22.495]
[1688260717023,22.485,18.812,18.804,55.0]
[1688260717501,22.485,18.812,18.803,55.0]
[1688260717702,22.485,18.812,18.803,77.495]
[1688260720213,22.485,18.812,18.804,10.83719922]
[1688260720414,22.484,18.814,18.806,22.492]
[1688260720719,22.484,18.814,18.806,33.32919922]
[1688260720923,22.484,18.814,18.807,55.0]
[1688260721123,22.484,18.814,18.809,22.489]
[1688260721338,22.484,18.814,18.81,55.0]
[1688260722130,22.484,18.814,18.809,55.0]
[1688260729835,22.484,18.814,18.803,55.0]
[1688260730040,22.484,18.814,18.802,20.0]
[1688260730238,22.484,18.814,18.801,20.0]
[1688260730420,22.484,18.814,18.791,105.737]
[1688260730421,20.0,18.813,18.79,128.61841607]
[1688260730619,20.0,18.813,18.797,26.69443448]
[1688260730620,186.052,18.807,18.797,26.69443448]
[1688260730925,186.052,18.807,18.794,49.200435]
[1688260731932,186.052,18.807,18.795,77.505]
[1688260732637,186.052,18.807,18.795,22.505]
[1688260734042,186.052,18.807,18.796,55.0]
[1688260734332,186.052,18.807,18.796,77.504]
[1688260738622,22.496,18.803,18.796,77.504]
[1688260747240,22.496,18.803,18.792,100.012]
[1688260747743,22.496,18.803,18.792,33.34519922]
[1688260747947,22.496,18.803,18.79,59.90769279]
[1688260748152,22.496,18.803,18.791,20.0]
[1688260749153,22.496,18.803,18.791,42.51]
[1688260749353,22.496,18.803,18.792,55.0]
[1688260749542,22.496,18.803,18.794,22.506]
[1688260749850,22.496,18.803,18.795,55.0]
[1688260750731,22.496,18.803,18.795,77.505]
[1688260751138,22.496,18.803,18.795,55.0]
[1688260751340,22.496,18.803,18.794,55.0]
[1688260754045,33.7,18.8,18.788,27.26295709]
[1688260754455,22.503,18.797,18.787,22.514]
[1688260754758,22.503,18.797,18.788,22.514]
[1688260755363,22.503,18.797,18.782,26.29635826]
[1688260755546,22.503,18.797,18.78,33.7]
[1688260755745,22.503,18.797,18.781,20.0]
[1688260755948,22.503,18.797,18.779,22.524]
[1688260755949,30.377242,18.797,18.779,22.524]
[1688260756156,7.874242,18.796,18.779,22.524]
[1688260756345,80.463,18.791,18.779,22.524]
[1688260757146,91.4252,18.79,18.779,22.524]
[1688260757344,22.515,18.787,18.777,33.36319922]
[1688260758553,22.515,18.787,18.778,55.0]
[1688260758874,22.515,18.787,18.779,22.525]
[1688260759064,22.515,18.787,18.78,55.0]
[1688260759447,22.515,18.787,18.774,385.99660098]
[1688260759848,22.515,18.787,18.764,10.83719922]
[1688260760158,22.515,18.787,18.769,22.536]
[1688260760357,22.515,18.787,18.768,106.584167]
[1688260760358,22.515,18.787,18.77,42.535]
[1688260761852,22.515,18.787,18.771,55.0]
[1688260762053,22.515,18.787,18.772,20.0]
[1688260762253,22.515,18.787,18.773,55.0]
[1688260763867,22.515,18.787,18.773,77.532]
[1688260772671,22.515,18.787,18.773,104.29930576]
[1688260773268,22.515,18.787,18.773,49.29930576]
[1688260773474,22.515,18.787,18.772,20.0]
[1688260773976,22.515,18.787,18.772,42.533]
[1688260774576,22.515,18.787,18.773,55.0]
[1688260775883,22.515,18.787,18.774,22.53]
[1688260776179,22.515,18.787,18.772,20.0]
[1688260776180,22.515,18.787,18.775,65.83719922]
[1688260777063,22.515,18.787,18.775,55.0]
[1688260777265,22.515,18.787,18.774,55.0]
[1688260777771,22.515,18.787,18.773,55.0]
[1688260778874,22.515,18.787,18.773,77.532]
[1688260779482,22.515,18.787,18.773,88.36919922]
[1688260780477,22.515,18.787,18.773,77.532]
[1688260780679,22.515,18.787,18.777,22.526]
[1688260780861,22.514,18.789,18.781,22.522]
[1688260781066,22.511,18.791,18.784,22.518]
[1688260781486,22.511,18.791,18.786,22.515]
[1688260781668,22.511,18.791,18.787,55.0]
[1688260781866,22.511,18.791,18.785,55.0]
[1688260783783,22.511,18.791,18.779,33.36119922]
[1688260784088,186.269,18.785,18.777,26.40716917]
[1688260784273,186.269,18.785,18.772,77.952]
[1688260784468,80.491,18.785,18.772,20.0]
[1688260784666,22.518,18.785,18.774,22.53]
[1688260785270,22.518,18.785,18.775,77.528]
[1688260785471,22.518,18.785,18.775,55.0]
[1688260785681,22.518,18.785,18.771,20.0]
[1688260785873,22.518,18.785,18.774,22.53]
[1688260786072,22.518,18.785,18.771,20.0]
[1688260786384,22.526,18.779,18.77,22.535]
[1688260786579,22.526,18.779,18.771,20.0]
[1688260786990,22.526,18.779,18.772,55.0]
[1688260787290,22.526,18.779,18.772,77.533]
[1688260789987,22.523,18.781,18.772,77.533]
[1688260790569,52.02250121,18.799,18.772,135.544]
[1688260790791,99.6812,18.789,18.772,77.533]
[1688260790993,22.522,18.782,18.772,77.533]
[1688260798592,22.522,18.782,18.772,55.0]
[1688260799493,22.522,18.782,18.772,77.533]
[1688260800885,99.6812,18.789,18.772,77.533]
[1688260801281,22.517,18.786,18.772,77.533]
[1688260807383,22.515,18.788,18.773,20.0]
[1688260807592,22.515,18.788,18.777,22.526]
[1688260807806,22.515,18.788,18.778,75.0]